{"text_format":"1","workbook":"xlsx","n_sheets":2,"sheets":["Feuil1","TVA"],"not_rendered":{"charts":0,"images":9,"macros":1,"external_links":0,"defined_names":0,"comments":0,"pivot_tables":0},"unopened":[],"bounds":{"document_bytes":16777216,"sheet_cells":100000,"rows_first":2000,"rows_last":500,"rows_between":2000,"halvings":0,"cell_chars":16384,"cell_head_chars":4096},"cells_cut":0,"cells_raw":0,"read":"whole","date_system":"1900"}

{"sheet":"Feuil1","index":0,"n_rows":28,"n_cols":32,"rows_kept":28,"cut":false,"hidden":false,"merged":[[2,10,2,18],[7,14,8,14],[7,15,8,15],[6,11,8,11],[6,12,8,12],[6,13,8,13],[3,11,4,13],[3,14,4,15],[3,16,5,18],[6,10,8,10],[6,16,8,18],[15,15,17,15],[15,16,17,18],[18,10,20,10],[18,11,20,11],[18,12,20,12],[18,13,20,13],[18,14,20,14],[18,15,20,15],[18,16,20,18],[15,10,17,10],[15,11,17,11],[15,12,17,12],[15,13,17,13],[15,14,17,14],[9,15,11,15],[9,16,11,18],[12,10,14,10],[12,11,14,11],[12,12,14,12],[12,13,14,13],[12,14,14,14],[12,15,14,15],[12,16,14,18],[9,10,11,10],[9,11,11,11],[9,12,11,12],[9,13,11,13],[9,14,11,14],[6,23,8,23],[9,20,11,20],[9,21,11,21],[9,22,11,22],[9,23,11,23],[18,20,20,20],[18,21,20,21],[18,22,20,22],[18,23,20,23],[4,20,4,23],[12,20,14,20],[12,21,14,21],[12,22,14,22],[12,23,14,23],[15,20,17,20],[15,21,17,21],[15,22,17,22],[15,23,17,23],[6,20,8,20],[6,21,8,21],[6,22,8,22],[15,24,17,24],[18,24,20,24],[9,24,11,24],[12,24,14,24],[6,24,8,24],[6,25,8,25],[9,25,11,25],[12,25,14,25],[15,25,17,25],[18,25,20,25]]}
[null,null,null,null,null,null,null,null,null,null,null,null,null,null,null,null,null,null,null,null,null,null,null,null,null,null,null,"DATE","Plafonds 2016","PLAFONDS 2017","Proratisés 2016","Annualisés 2017"]
[null,null,null,null,null,null,null,null,null,null,null,null,null,null,null,null,null,null,null,null,null,null,null,null,null,null,null,{"$f":"DATE(YEAR(E9),12,31)","v":"2018-12-31"},82200,170000,{"$f":"(AC2*AB3)/364","v":82200},{"$f":"(AD2*AB3)/364","v":170000}]
[null,null,null,null,null,null,null,null,null,null,{"$f":"IF(AF14=FALSE,\"Activité principale\",\"Activité principale et secondaire\")","v":"Activité principale"},null,null,null,null,null,null,null,null,null,null,null,null,null,null,null,null,{"$f":"IF(AB5<2015,364,DATEDIF(E9,AB2,\"d\"))","v":364},32900,70000,{"$f":"(AC3*AB3)/364","v":32900},{"$f":"(AD3*AB3)/364","v":70000}]
[null,null,null,null,null,null,null,null,null,null,"Année","Chiffre d'affaires prévu ou réalisé",null,null,"Plafonds en vigueur suivant art. 50.0 et 102ter du CGI",null,"Analyse et conséquences",null,null,null,null,null,null,null,null,null,"N+2",{"$f":"IF(AB5=2017,AB5+2,IF(AB5=2018,AB5+2,\"\"))","v":2020}]
[null,null,null,null,null,null,null,null,null,null,"Début activité",null,null,null,null,null,null,null,null,null,"Activité globale ou principale",null,null,null,"Sec","ET","création (N)",{"$f":"IF(E9=\"\",\"\",YEAR(E9))","v":2018}]
[null,null,null,null,null,null,null,null,null,null,{"$f":"IF(E9=\"\",\"\",YEAR(E9))","v":2018},{"$f":"IF(AF14=TRUE,\"Global\",\"Principal\")","v":"Principal"},{"$f":"IF(AF14=TRUE,\"Principal\",\"\")","v":""},{"$f":"IF(AF14=TRUE,\"Secondaire\",\"\")","v":""},{"$f":"IF(AF14=TRUE,\"Global\",\"Principal\")","v":"Principal"},{"$f":"IF(AF14=TRUE,\"Prestations/libéral\",\"\")","v":""},null,null,null,null,"N","N-1","N-2","R","R","R",null,{"$f":"IF(AB5<=2015,2015,IF(AB5>2015,YEAR(E9)))","v":2018}]
[null,null,null,null,null,null,null,null,null,null,{"$f":"AB6","v":2018},{"$f":"IF(AF14=TRUE,D22+E22,D22)","v":0},{"$f":"IF(AF14=TRUE,D22,\"\")","v":""},{"$f":"IF(AF14=TRUE,E22,\"\")","v":""},{"$f":"IF(K6>=2015,\"proratisé\",\"non proratisé\")","v":"proratisé"},{"$f":"IF(P6=\"\",\"\",O7)","v":""},{"$f":"IF(AND(X7=0,AF14=FALSE),AB9,IF(AND(Z7=0,AF14=TRUE),AB9,IF(AND(X7=1,AF14=FALSE),AB10,IF(AND(Z7=1,AF14=TRUE),AB10,\"\"))))","v":"Chiffre d'affaires inférieur au plafond autorisé. Application du régime micro-fiscal."},null,null,null,{"$f":"IF(L7<=O8,0,IF(L7>O8,1,\"\"))","v":0},null,null,{"$f":"U7","v":0},{"$f":"IF(N7<=P8,0,1)","v":0},{"$f":"IF(AND(X7=0,Y7=0),0,1)","v":0}]
[null,null,null,null,null,null,null,null,null,null,null,null,null,null,{"$f":"IF(AND(AND(K6<2015,AF14=FALSE,AB14=TRUE)),AD2,IF(AND(AND(K6<2015,AF14=FALSE,AB15=TRUE)),AD3,IF(AND(AND(K6<2015,AF14=FALSE,AB16=TRUE)),AD3,IF(AND(AND(K6>=2015,AF14=FALSE,AB14=TRUE)),AF2,IF(AND(AND(K6>=2015,AF14=FALSE,AB15=TRUE)),AF3,IF(AND(AND(K6>=2015,AF14=FALSE,AB16=TRUE)),AF3,IF(AND(AND(K6<2015,AF14=TRUE,AB14=TRUE)),AD2,IF(AND(AND(K6<2015,AF14=TRUE,AB15=TRUE)),AD3,IF(AND(AND(K6<2015,AF14=TRUE,AB16=TRUE)),AD3,IF(AND(AND(K6>=2015,AF14=TRUE,AB14=TRUE)),AF2,IF(AND(AND(K6>=2015,AF14=TRUE,AB15=TRUE)),AF3,IF(AND(AND(K6>=2015,AF14=TRUE,AB16=TRUE)),AF3,\"\"))))))))))))","v":""},{"$f":"IF(AND(AF14=TRUE,P7=\"proratisé\"),AF3,IF(AND(AF14=TRUE,P7=\"non proratisé\"),AD3,\"\"))","v":""},null,null,null,null,null,null,null,null,null,null,null,"Conséquences :"]
[null,null,"Date de début d'activité :",null,"2018-01-01",null,null,null,null,null,null,null,null,null,null,null,null,null,null,null,null,null,null,null,null,null,null,{"$f":"IF(AND(X7=0,AF14=FALSE),\"Chiffre d'affaires inférieur au plafond autorisé. Application du régime micro-fiscal.\",IF(AND(Z7=0,AF14=TRUE),\"Chiffre d'affaires inférieur au plafond autorisé. Application du régime micro-fiscal.\",IF(AND(X10=0,AF14=FALSE),\"Chiffre d'affaires inférieur au plafond autorisé. Application du régime micro-fiscal.\",IF(AND(Z10=0,AF14=TRUE),\"Chiffre d'affaires inférieur au plafond autorisé. Application du régime micro-fiscal.\",IF(AND(X13=0,AF14=FALSE),\"Chiffre d'affaires inférieur au plafond autorisé. Application du régime micro-fiscal.\",IF(AND(Z13=0,AF14=TRUE),\"Chiffre d'affaires inférieur au plafond autorisé. Application du régime micro-fiscal.\",IF(AND(X16=0,AF14=FALSE),\"Chiffre d'affaires inférieur au plafond autorisé. Application du régime micro-fiscal.\",IF(AND(Z16=0,AF14=TRUE),\"Chiffre d'affaires inférieur au plafond autorisé. Application du régime micro-fiscal.\",IF(AND(X19=0,AF14=FALSE),\"Chiffre d'affaires inférieur au plafond autorisé. Application du régime micro-fiscal.\",IF(AND(Z19=0,AF14=TRUE),\"Chiffre d'affaires inférieur au plafond autorisé. Application du régime micro-fiscal.\",\"\"))))))))))","v":"Chiffre d'affaires inférieur au plafond autorisé. Application du régime micro-fiscal."}]
[null,null,null,null,null,null,null,null,null,null,{"$f":"K7+1","v":2019},{"$f":"IF(AF14=TRUE,D23+E23,D23)","v":0},{"$f":"IF(AF14=TRUE,D23,\"\")","v":""},{"$f":"IF(AF14=TRUE,E23,\"\")","v":""},{"$f":"IF(AND(AF14=FALSE,AB14=TRUE),AD2,IF(AND(AF14=FALSE,AB15=TRUE),AD3,IF(AND(AF14=FALSE,AB16=TRUE),AD3,IF(AND(AF14=TRUE,AB14=TRUE),AD2,IF(AND(AF14=TRUE,AB15=TRUE),AD3,IF(AND(AF14=TRUE,AB16=TRUE),AD3,\"\"))))))","v":""},{"$f":"IF(AF14=TRUE,AD3,\"\")","v":""},{"$f":"IF(AND(X10=0,AF14=FALSE),AB9,IF(AND(Z10=0,AF14=TRUE),AB9,IF(AND(X10=1,AF14=FALSE),AB10,IF(AND(Z10=1,AF14=TRUE),AB10,\"\"))))","v":"Chiffre d'affaires inférieur au plafond autorisé. Application du régime micro-fiscal."},null,null,null,{"$f":"IF(L10<=O10,0,IF(L10>O10,1,\"\"))","v":0},{"$f":"U7","v":0},null,{"$f":"U10","v":0},{"$f":"IF(N10<=P10,0,1)","v":0},{"$f":"IF(AND(X10=0,Y10=0),0,1)","v":0},null,{"$f":"IF(AND(X7=1,AF14=FALSE),\"Chiffre d'affaires supérieur au plafond autorisé. Application du régime micro-fiscal mais mise en surveillance du CA.\",IF(AND(Z7=1,AF14=TRUE),\"Chiffre d'affaires supérieur au plafond autorisé. Application du régime micro-fiscal mais mise en surveillance du CA.\",IF(AND(X10=1,AF14=FALSE),\"Chiffre d'affaires supérieur au plafond autorisé. Application du régime micro-fiscal mais mise en surveillance du CA.\",IF(AND(Z10=1,AF14=TRUE),\"Chiffre d'affaires supérieur au plafond autorisé. Application du régime micro-fiscal mais mise en surveillance du CA.\",IF(AND(X13=1,AF14=FALSE),\"Chiffre d'affaires supérieur au plafond autorisé. Application du régime micro-fiscal mais mise en surveillance du CA.\",IF(AND(Z13=1,AF14=TRUE),\"Chiffre d'affaires supérieur au plafond autorisé. Application du régime micro-fiscal mais mise en surveillance du CA.\",IF(AND(X16=1,AF14=FALSE),\"Chiffre d'affaires supérieur au plafond autorisé. Application du régime micro-fiscal mais mise en surveillance du CA.\",IF(AND(Z16=1,AF14=TRUE),\"Chiffre d'affaires supérieur au plafond autorisé. Application du régime micro-fiscal mais mise en surveillance du CA.\",IF(AND(X19=1,AF14=FALSE),\"Chiffre d'affaires supérieur au plafond autorisé. Application du régime micro-fiscal mais mise en surveillance du CA.\",IF(AND(Z19=1,AF14=TRUE),\"Chiffre d'affaires supérieur au plafond autorisé. Application du régime micro-fiscal mais mise en surveillance du CA.\",\"\"))))))))))","v":""}]
[null,null,"Les activités exercées (un choix possible par activité principale et secondaire) :",null,null,null,null,null,null,null,null,null,null,null,null,null,null,null,null,null,null,null,null,null,null,null,null,{"$f":"IF(AND(X7=2,AF14=FALSE),\"Le plafond de CA a été dépassé deux années consécutives. Le régime réel d'imposition s'applique à compter du 1er janvier de cette année.\",IF(AND(Z7=2,AF14=TRUE),\"Le plafond de CA a été dépassé deux années consécutives. Le régime réel d'imposition s'applique à compter du 1er janvier de cette année.\",IF(AND(X10=2,AF14=FALSE),\"Le plafond de CA a été dépassé deux années consécutives. Le régime réel d'imposition s'applique à compter du 1er janvier de cette année.\",IF(AND(Z10=2,AF14=TRUE),\"Le plafond de CA a été dépassé deux années consécutives. Le régime réel d'imposition s'applique à compter du 1er janvier de cette année.\",IF(AND(X13=2,AF14=FALSE),\"Le plafond de CA a été dépassé deux années consécutives. Le régime réel d'imposition s'applique à compter du 1er janvier de cette année.\",IF(AND(Z13=2,AF14=TRUE),\"Le plafond de CA a été dépassé deux années consécutives. Le régime réel d'imposition s'applique à compter du 1er janvier de cette année.\",IF(AND(X16=2,AF14=FALSE),\"Le plafond de CA a été dépassé deux années consécutives. Le régime réel d'imposition s'applique à compter du 1er janvier de cette année.\",IF(AND(Z16=2,AF14=TRUE),\"Le plafond de CA a été dépassé deux années consécutives. Le régime réel d'imposition s'applique à compter du 1er janvier de cette année.\",IF(AND(X19=2,AF14=FALSE),\"Le plafond de CA a été dépassé deux années consécutives. Le régime réel d'imposition s'applique à compter du 1er janvier de cette année.\",IF(AND(Z19=2,AF14=TRUE),\"Le plafond de CA a été dépassé deux années consécutives. Le régime réel d'imposition s'applique à compter du 1er janvier de cette année.\",\"\"))))))))))","v":""}]
[null,null,null,null,null,null,null,null,null,null,null,null,null,null,null,null,null,null,null,null,null,null,null,null,null,null,null,{"$f":"IF(AND(X7=3,AF14=FALSE),\"Le régime micro-fiscal s'applique à nouveau car CA année précédente < au plafond.\",IF(AND(Z7=3,AF14=TRUE),\"Le régime micro-fiscal s'applique à nouveau car CA année précédente < au plafond.\",IF(AND(X10=3,AF14=FALSE),\"Le régime micro-fiscal s'applique à nouveau car CA année précédente < au plafond.\",IF(AND(Z10=3,AF14=TRUE),\"Le régime micro-fiscal s'applique à nouveau car CA année précédente < au plafond.\",IF(AND(X13=3,AF14=FALSE),\"Le régime micro-fiscal s'applique à nouveau car CA année précédente < au plafond.\",IF(AND(Z13=3,AF14=TRUE),\"Le régime micro-fiscal s'applique à nouveau car CA année précédente < au plafond.\",IF(AND(X16=3,AF14=FALSE),\"Le régime micro-fiscal s'applique à nouveau car CA année précédente < au plafond.\",IF(AND(Z16=3,AF14=TRUE),\"Le régime micro-fiscal s'applique à nouveau car CA année précédente < au plafond.\",IF(AND(X19=3,AF14=FALSE),\"Le régime micro-fiscal s'applique à nouveau car CA année précédente < au plafond.\",IF(AND(Z19=3,AF14=TRUE),\"Le régime micro-fiscal s'applique à nouveau car CA année précédente < au plafond.\",\"\"))))))))))","v":""}]
[null,null,null,null,null,null,null,null,null,null,{"$f":"K10+1","v":2020},{"$f":"IF(AF14=TRUE,D24+E24,D24)","v":0},{"$f":"IF(AF14=TRUE,D24,\"\")","v":""},{"$f":"IF(AF14=TRUE,E24,\"\")","v":""},{"$f":"O10","v":""},{"$f":"IF(AF14=TRUE,AD3,\"\")","v":""},{"$f":"IF(AND(X13=0,AF14=FALSE),AB9,IF(AND(Z13=0,AF14=TRUE),AB9,IF(AND(X13=1,AF14=FALSE),AB10,IF(AND(Z13=1,AF14=TRUE),AB10,IF(AND(X13=2,AF14=FALSE),AB11,IF(AND(Z13=2,AF14=TRUE),AB11,\"\"))))))","v":"Chiffre d'affaires inférieur au plafond autorisé. Application du régime micro-fiscal."},null,null,null,{"$f":"IF(L13<=O13,0,IF(L13>O13,1,\"\"))","v":0},{"$f":"U10","v":0},{"$f":"U7","v":0},{"$f":"IF(AND(AND(X7=0,X10=0,U13=0)),0,IF(AND(AND(X7=1,X10=0,U13=0)),0,IF(AND(AND(X7=0,X10=1,U13=0)),0,IF(AND(AND(X7=0,X10=0,U13=1)),1,IF(AND(AND(X7=0,X10=1,U13=1)),1,IF(AND(AND(X7=1,X10=0,U13=1)),1,IF(AND(AND(X7=1,X10=1,U13<=1)),2,\"\")))))))","v":0},{"$f":"IF(N13<=P13,0,1)","v":0},{"$f":"IF(AND(AND(AND(Z7<=1,Z10=0,X13=0,Y13=0))),0,IF(AND(AND(AND(Z7=0,Z10<=1,X13=0,Y13=0))),0,IF(AND(AND(AND(Z7<=1,Z10=0,X13<=1,Y13<=1))),1,IF(AND(AND(AND(Z7=0,Z10<=1,X13<=1,Y13<=1))),1,IF(AND(AND(AND(Z7=1,Z10=1,X13<=2,Y13<=1))),2,\"\")))))","v":0},null,"CTRL AP",null,"CTRL AS",null,"CTRL AS OUI"]
[null,null,null,null,null,null,null,null,null,null,null,null,null,null,null,null,null,null,null,null,null,null,null,null,null,null,null,false,{"$f":"IF(AND(AB14=TRUE,AB5<2017),D22,AF2)","v":170000},false,{"$f":"IF(AD14=TRUE,AF2,\"\")","v":""},false]
[null,null,null,null,null,null,null,null,null,null,null,null,null,null,null,null,null,null,null,null,null,null,null,null,null,null,null,false,{"$f":"IF(AND(AB15=TRUE,AB5<2017),D22,AF3)","v":70000},false,{"$f":"IF(AD15=TRUE,AF3,\"\")","v":""},{"$f":"IF(AF14=FALSE,0,1)","v":0}]
[null,null,null,null,null,null,null,null,null,null,{"$f":"K13+1","v":2021},{"$f":"IF(AF14=TRUE,D25+E25,D25)","v":0},{"$f":"IF(AF14=TRUE,D25,\"\")","v":""},{"$f":"IF(AF14=TRUE,E25,\"\")","v":""},{"$f":"O13","v":""},{"$f":"IF(AF14=TRUE,AD3,\"\")","v":""},{"$f":"IF(AND(X16=0,AF14=FALSE),AB9,IF(AND(Z16=0,AF14=TRUE),AB9,IF(AND(X16=1,AF14=FALSE),AB10,IF(AND(Z16=1,AF14=TRUE),AB10,IF(AND(X16=2,AF14=FALSE),AB11,IF(AND(Z16=2,AF14=TRUE),AB11,IF(AND(X16=3,AF14=FALSE),AB12,IF(AND(Z16=3,AF14=TRUE),AB12,\"\"))))))))","v":"Chiffre d'affaires inférieur au plafond autorisé. Application du régime micro-fiscal."},null,null,null,{"$f":"IF(L16<=O16,0,IF(L16>O16,1,\"\"))","v":0},{"$f":"U13","v":0},{"$f":"V13","v":0},{"$f":"IF(AND(AND(X10=0,X13=0,U16=0)),0,IF(AND(AND(X10=1,X13=0,U16=0)),0,IF(AND(AND(X10=0,X13=1,U16=0)),0,IF(AND(AND(X10=0,X13=0,U16=1)),1,IF(AND(AND(X10=0,X13=1,U16=1)),1,IF(AND(AND(X10=1,X13=0,U16=1)),1,IF(AND(AND(X10=1,U13=1,U16<=2)),2,IF(AND(X13=2,U16<=1),3,\"\"))))))))","v":0},{"$f":"IF(N16<=P16,0,1)","v":0},{"$f":"IF(AND(AND(AND(Z10<=1,Z13=0,X16=0,Y16=0))),0,IF(AND(AND(AND(Z10=0,Z13<=1,X16=0,Y16=0))),0,IF(AND(AND(AND(Z10<=1,Z13=0,X16<=1,Y16<=1))),1,IF(AND(AND(AND(Z10=0,Z13<=1,X16<=1,Y16<=1))),1,IF(AND(U10=1,U13=1),2,IF(AND(Y10=1,Y13=1),2,IF(AND(AND(Z13=2,U13=0,Y13=0)),3,\"\")))))))","v":0},null,false,{"$f":"IF(AND(AB16=TRUE,AB5<2017),D22,AF3)","v":70000},false,{"$f":"IF(AD16=TRUE,AF3,\"\")","v":""},{"$f":"IF(C23=2018,1,IF(C23=2019,1,0))","v":1}]
[null,null,null,null,null,null,null,null,null,null,null,null,null,null,null,null,null,null,null,null,null,null,null,null,null,null,null,null,"CTRL Dpst 1","CTRL Dpst 2","CTRL Dpst 3","CTRL Dpst 4"]
[null,null,null,null,null,null,null,null,null,null,null,null,null,null,null,null,null,null,null,null,null,null,null,null,null,null,null,"Vente",{"$f":"IF(AND(AB5<2017,AC14<=AD2),0,IF(AND(AB5>=2017,D22>AF2),1,3))","v":3},{"$f":"IF(D23>AD2,1,0)","v":0},{"$f":"IF(AND(AB5>=2017,E22>AE14),1,0)","v":0},{"$f":"IF(E23>AD2,1,0)","v":0}]
[null,null,{"$f":"IF(E9=\"\",\"\",\"Indiquez ici vos chiffres d'affaires réalisés ou prévisionnels :\")","v":"Indiquez ici vos chiffres d'affaires réalisés ou prévisionnels :"},null,null,null,null,null,null,null,{"$f":"K16+1","v":2022},{"$f":"IF(AF14=TRUE,D26+E26,D26)","v":0},{"$f":"IF(AF14=TRUE,D26,\"\")","v":""},{"$f":"IF(AF14=TRUE,E26,\"\")","v":""},{"$f":"O16","v":""},{"$f":"IF(AF14=TRUE,AD3,\"\")","v":""},{"$f":"IF(AND(X19=0,AF14=FALSE),AB9,IF(AND(Z19=0,AF14=TRUE),AB9,IF(AND(X19=1,AF14=FALSE),AB10,IF(AND(Z19=1,AF14=TRUE),AB10,IF(AND(X19=2,AF14=FALSE),AB11,IF(AND(Z19=2,AF14=TRUE),AB11,IF(AND(Z19=3,AF14=TRUE),AB12,IF(AND(X19=3,AF14=FALSE),AB12,IF(AND(Z19=4,AF14=FALSE),AB25,IF(AND(Z19=4,AF14=TRUE),AB25,\"\"))))))))))","v":"Chiffre d'affaires inférieur au plafond autorisé. Application du régime micro-fiscal."},null,null,null,{"$f":"IF(L19<=O19,0,IF(L19>O19,1,\"\"))","v":0},{"$f":"U16","v":0},{"$f":"V16","v":0},{"$f":"IF(AND(AND(X13=0,X16=0,U19=0)),0,IF(AND(AND(X13=1,X16=0,U19=0)),0,IF(AND(AND(X13=0,X16=1,U19=0)),0,IF(AND(AND(X13=0,X16=0,U19=1)),1,IF(AND(AND(X13=0,X16=1,U19=1)),1,IF(AND(AND(X13=1,X16=0,U19=1)),1,IF(AND(AND(U13=1,U16=1,U19<=2)),2,IF(AND(X16=2,U19<=1),3,IF(AND(AND(U13=0,U16=0,U19<=1)),3,IF(AND(U16=1,U19=1),4,\"\"))))))))))","v":0},{"$f":"IF(N19<=P19,0,1)","v":0},{"$f":"IF(AND(AND(AND(Z13<=1,Z16=0,X19=0,Y19=0))),0,IF(AND(AND(AND(Z13=0,Z16<=1,X19=0,Y19=0))),0,IF(U19=1,1,IF(Y19=1,1,IF(AND(U13=1,U16=1),2,IF(AND(Y13=1,Y16=1),2,IF(AND(AND(Z16=3,U19=0,Y19=0)),3,IF(AND(AND(Z13=1,U16=0,Y16=0)),3,IF(AND(AND(AND(Z13=1,Z16=2,X19<=1,Y19<=1))),3,IF(AND(X16=1,X19=1),4,IF(AND(Y16=1,Y19=1),4,\"\")))))))))))","v":0},null,"Presta",{"$f":"IF(AND(AB5<2017,AC15<=AD3),0,IF(AND(AND(AB5>=2017,D22>AF3,AF15=0)),1,3))","v":3},{"$f":"IF(AND(AB15=TRUE,D23>AD3),1,0)","v":0},{"$f":"IF(AND(AB5>=2017,E22>AE15),1,0)","v":0},{"$f":"IF(AND(AD15=TRUE,E23>AD3),1,0)","v":0}]
[null,null,null,null,null,null,null,null,null,null,null,null,null,null,null,null,null,null,null,null,null,null,null,null,null,null,null,"Lib",{"$f":"IF(AND(AB5<2017,AC16<=AD3),0,IF(AND(AND(AB5>=2017,D22>AF3,AF15=0)),1,3))","v":3},{"$f":"IF(AND(AB16=TRUE,D23>AD3),1,0)","v":0},{"$f":"IF(AND(AB5>=2017,E22>AE16),1,0)","v":0},{"$f":"IF(AND(AD16=TRUE,E23>AD3),1,0)","v":0}]
[null,null,null,{"$f":"IF(AF14=FALSE,\"Activité principale\",\"Activité principale\")","v":"Activité principale"},{"$f":"IF(AF14=TRUE,\"Activité secondaire\",\"\")","v":""},null,null,null,null,null,null,null,null,null,null,null,null,null,null,null,null,null,null,null,null,null,null,null,"Ctrl CA global"]
[null,null,{"$f":"IF(AB6<=2015,2015,IF(AB6>2015,AB6,\"\"))","v":2018},null,null,null,null,null,null,null,null,null,null,null,null,null,null,null,null,null,null,null,null,null,null,null,null,{"$f":"AB6","v":2018},{"$f":"IF(AB5<=2016,AD2,AF2+AF3)","v":240000}]
[null,null,{"$f":"C22+1","v":2019},null,null,null,null,null,null,null,null,null,null,null,null,null,null,null,null,null,null,null,null,null,null,null,null,{"$f":"AB22+1","v":2019},{"$f":"D23+E23","v":0}]
[null,null,{"$f":"C23+1","v":2020}]
[null,null,{"$f":"C24+1","v":2021},null,null,null,null,null,null,null,null,null,null,null,null,null,null,null,null,null,null,null,null,null,null,null,null,{"$f":"IF(AND(X19=4,AF14=FALSE),\"Le régime micro-fiscal s'applique pour la dernière année car le plafond est dépassé les deux années précédentes\",IF(AND(Z19=4,AF14=TRUE),\"Le régime micro-fiscal s'applique pour la dernière année car le plafond est dépassé les deux années précédentes\",\"\"))","v":""}]
[null,null,{"$f":"C25+1","v":2022}]
[]
[null,null,"© UPSME Août 2018"]

{"sheet":"TVA","index":1,"n_rows":33,"n_cols":29,"rows_kept":33,"cut":false,"hidden":false,"merged":[[25,13,27,13],[28,13,30,13],[14,14,15,14],[16,14,18,14],[19,14,21,14],[22,14,24,14],[25,14,27,14],[28,14,30,14],[25,11,27,11],[28,11,30,11],[16,12,18,12],[19,12,21,12],[22,12,24,12],[25,12,27,12],[28,12,30,12],[25,6,27,9],[25,1,27,1],[25,2,27,2],[25,3,27,3],[25,4,27,4],[26,5,27,5],[19,1,21,1],[19,2,21,2],[19,3,21,3],[19,4,21,4],[5,3,5,4],[22,1,24,1],[22,2,24,2],[22,3,24,3],[22,4,24,4],[0,25,0,26],[19,6,21,9],[20,5,21,5],[23,5,24,5],[12,1,12,4],[12,5,12,9],[16,1,18,1],[16,2,18,2],[13,6,15,9],[13,5,15,5],[13,2,15,2],[16,6,18,9],[0,27,0,28],[17,3,18,3],[17,4,18,4],[17,5,18,5],[22,6,24,9],[13,3,14,4],[16,11,18,11],[19,11,21,11],[22,11,24,11],[16,13,18,13],[19,13,21,13],[22,13,24,13],[1,3,2,8],[28,6,30,9],[28,1,30,1],[28,2,30,2],[28,3,30,3],[28,4,30,4],[29,5,30,5]]}
[null,null,null,null,null,null,null,null,null,null,null,null,null,null,null,"Date jour",{"$f":"TODAY()","v":"2018-08-27"},"date création",{"$f":"D7","v":"2018-05-02"},"création < 2017","création en 2017","création en 2018",{"$f":"IF(B7=2018,1,0)","v":1},null,null,"Seuils 2014 - 2016",null,"Seuils 2017 - 2019"]
[null,null,null,"Simulateur de TVA Micro-entrepreneur",null,null,null,null,null,null,null,null,null,null,null,"Année",{"$f":"YEAR(Q1)","v":2018},"Nbre jours pro.",{"$f":"DATEDIF(D7,Q4,\"d\")","v":243},null,null,"nature activité :",null,null,"Normal",82200,90300,82800,91000]
[null,null,null,null,null,null,null,null,null,null,null,null,null,null,null,"Année N-2",{"$f":"Q2-2","v":2016},"Seuil 1 TVA",33200,null,null,"vente",{"$f":"Feuil1!AB14","v":false},{"$f":"IF(W3=FALSE,0,IF(W3=TRUE,1,\"\"))","v":0},"Proratisé",{"$f":"ROUND((Z2*S2)/364,0)","v":54875},{"$f":"ROUND((AA2*S2)/364,0)","v":60283},{"$f":"ROUND((AB2*S2)/364,0)","v":55276},{"$f":"ROUND((AC2*S2)/364,0)","v":60750}]
[null,null,null,null,null,null,null,null,null,null,null,null,null,null,null,"Fin année",{"$f":"DATE(YEAR(S1),12,31)","v":"2018-12-31"},"Seuil 1 TVA proratisé",{"$f":"ROUND((S3*S2)/364,0)","v":22164},null,null,"prestation",{"$f":"Feuil1!AB15","v":false},{"$f":"IF(W4=FALSE,0,IF(W4=TRUE,1,\"\"))","v":0},"Normal",32900,34900,33200,35200]
[null,null,null,null,null,null,null,null,null,null,null,null,null,null,null,"Prestations de services",null,"Seuil 2 TVA",35200,null,null,"libéral",{"$f":"Feuil1!AB16","v":false},{"$f":"IF(W5=FALSE,0,IF(W5=TRUE,1,\"\"))","v":0},"Proratisé",{"$f":"ROUND((Z4*S2)/364,0)","v":21963},{"$f":"ROUND((AA4*S2)/364,0)","v":23299},{"$f":"ROUND((AB4*S2)/364,0)","v":22164},{"$f":"ROUND((AC4*S2)/364,0)","v":23499}]
[null,null,"Activité principale","Date de début d'activité",null,"Activité exercée",null,null,null,null,null,null,null,null,null,"Activité libérale",null,"Seuil 2 TVA proratisé",{"$f":"ROUND((S5*S2)/364,0)","v":23499}]
[null,2018,0,"2018-05-02",{"$f":"YEAR(D7)","v":2018},"Prestations de services",null,null,null,null,null,null,null,null,null,"Année N-1",{"$f":"(YEAR(Q1))-1","v":2017},"Seuil 3 TVA",82800,null,null,"nature TVA"]
[null,{"$f":"B7+1","v":2019},0,null,null,null,null,null,null,null,null,null,null,null,{"$f":"IF(F13=\"Vente, Location Meublés\",1,0)","v":0},"Vente, Location Meublés",null,"Seuil 3 TVA proratisé",{"$f":"ROUND((S7*S2)/364,0)","v":55276},null,null,"TVA vente"]
[null,{"$f":"B8+1","v":2020},0,null,null,null,null,null,null,null,null,null,null,null,{"$f":"IF(F13=\"Prestations de services\",1,0)","v":1},"Prestations de services",null,"Seuil 4 TVA",91000,null,null,"TVA presta"]
[null,{"$f":"B9+1","v":2021},0,null,null,null,null,null,null,null,null,null,null,null,{"$f":"IF(F13=\"Activité libérale\",1,0)","v":0},"Activité libérale",null,"Seuil 4 TVA proratisé",{"$f":"ROUND((S9*S2)/364,0)","v":60750},null,null,"TVA libéral"]
[null,{"$f":"B10+1","v":2022},0]
[]
[null,"Activité principale : ",null,null,null,{"$f":"F7","v":"Prestations de services"},null,null,null,null,null,null,null,null,null,{"$f":"IF(O17=2,\"Application du régime réel de TVA à compter du 1er jour du mois de dépassement de l'année en cours.\",IF(O20=2,\"Application du régime réel de TVA à compter du 1er jour du mois de dépassement de l'année en cours.\",IF(O23=2,\"Application du régime réel de TVA à compter du 1er jour du mois de dépassement de l'année en cours.\",IF(O26=2,\"Application du régime réel de TVA à compter du 1er jour du mois de dépassement de l'année en cours.\",IF(O29=2,\"Application du régime réel de TVA à compter du 1er jour du mois de dépassement de l'année en cours.\",\"\")))))","v":""}]
[null,"Année",{"$f":"IF(B7<=2017,\"Chiffre d'affaires réalisé\",IF(B7>=2018,\"Chiffre d'affaires prévu\",\"\"))","v":"Chiffre d'affaires prévu"},"Seuils en vigueur au I de l'article 293B du CGI",null,"Bascule/Surveillance","Régime d'imposition de TVA",null,null,null,null,null,null,null,null,{"$f":"IF(O17=3,\"Application du régime réel de TVA tout au long de l'année.\",IF(O20=3,\"Application du régime réel de TVA tout au long de l'année.\",IF(O23=3,\"Application du régime réel de TVA tout au long de l'année.\",IF(O26=3,\"Application du régime réel de TVA tout au long de l'année.\",IF(O29=3,\"Application du régime réel de TVA tout au long de l'année.\",\"\")))))","v":""}]
[null,"Début d'activité",null,null,null,null,null,null,null,null,null,"1ère cond.","2ème cond","3ème cond","Conséquence",{"$f":"IF(O17=0,\"Franchise tout au long de l'année en cours\",IF(O20=0,\"Franchise tout au long de l'année en cours\",IF(O23=0,\"Franchise tout au long de l'année en cours\",IF(O26=0,\"Franchise tout au long de l'année en cours\",IF(O29=0,\"Franchise tout au long de l'année en cours\",\"\")))))","v":"Franchise tout au long de l'année en cours"}]
[null,{"$f":"E7","v":2018},null,"a du 1°","b du 2°",null,null,null,null,null,null,"Année N","Année N-1","Année N-2",null,{"$f":"IF(O17=1,\"Franchise tout au long de l'année en cours mais mise sous surveillance du chiffre d'affaires pour les années suivantes\",IF(O20=1,\"Franchise tout au long de l'année en cours mais mise sous surveillance du chiffre d'affaires pour les années suivantes\",IF(O23=1,\"Franchise tout au long de l'année en cours mais mise sous surveillance du chiffre d'affaires pour les années suivantes\",IF(O26=1,\"Franchise tout au long de l'année en cours mais mise sous surveillance du chiffre d'affaires pour les années suivantes\",IF(O29=1,\"Franchise tout au long de l'année en cours mais mise sous surveillance du chiffre d'affaires pour les années suivantes\",\"\")))))","v":""}]
[null,{"$f":"B7","v":2018},{"$f":"C7","v":0},{"$f":"IF(E7<2018,\"non proratisés\",\"proratisés\")","v":"proratisés"},{"$f":"IF(E7<2018,\"non proratisés\",\"proratisés\")","v":"proratisés"},{"$f":"IF(O17=0,\"Franchise\",IF(O17=1,\"Surveillance\",IF(O17=2,\"Dépassement\",\"\")))","v":"Franchise"},{"$f":"IF(O17=0,P15,IF(O17=1,P16,IF(O17=2,P13,\"\")))","v":"Franchise tout au long de l'année en cours"},null,null,null,null,{"$f":"IF(C17<D18,0,IF(AND(C17>=D18,C17<=E18),1,IF(C17>E18,2,\"\")))","v":0},null,null,{"$f":"IF(L17=0,0,IF(L17=1,1,IF(L17=2,2,\"\")))","v":0},{"$f":"IF(O20=4,\"Application du régime réel de TVA tout au long de l'année mais option du régime de franchise en base de TVA à nouveau possible.\",IF(O23=4,\"Application du régime réel de TVA tout au long de l'année mais option du régime de franchise en base de TVA à nouveau possible.\",IF(O26=4,\"Application du régime réel de TVA tout au long de l'année mais option du régime de franchise en base de TVA à nouveau possible.\",IF(O29=4,\"Application du régime réel de TVA tout au long de l'année mais option du régime de franchise en base de TVA à nouveau possible.\",\"\"))))","v":""}]
[null,null,null,{"$f":"IF(AND(D17=\"proratisés\",O8=1),AB3,IF(AND(D17=\"proratisés\",O9=1),AB5,IF(AND(D17=\"proratisés\",O10=1),AB5,IF(AND(D17=\"non proratisés\",O8=1),AB2,IF(AND(D17=\"non proratisés\",O9=1),AB4,IF(AND(D17=\"non proratisés\",,D10=1),AB4,\"\"))))))","v":22164},{"$f":"IF(AND(E17=\"proratisés\",O8=1),AC3,IF(AND(E17=\"proratisés\",O9=1),AC5,IF(AND(E17=\"proratisés\",O10=1),AC5,IF(AND(E17=\"non proratisés\",O8=1),AC2,IF(AND(E17=\"non proratisés\",O9=1),AC4,IF(AND(E17=\"non proratisés\",,E10=1),AC4,\"\"))))))","v":23499},{"$f":"IF(F17=\"\",\"\",\"oui\")","v":"oui"}]
[]
[null,{"$f":"B17+1","v":2019},{"$f":"C8","v":0},{"$f":"IF(AND(B20>=2017,O9=1),AB4,IF(AND(B20>=2017,O8=1),AB2,IF(AND(B20>=2017,O10=1),AB4,\"\")))","v":33200},{"$f":"IF(AND(B20>=2017,O9=1),AC4,IF(AND(B20>=2017,O8=1),AC2,IF(AND(B20>=2017,O10=1),AC4,\"\")))","v":35200},{"$f":"IF(O20=0,\"Franchise\",IF(O20=1,\"Surveillance\",IF(O20=2,\"Dépassement\",IF(O20=3,\"Régime réel de TVA\",\"\"))))","v":"Franchise"},{"$f":"IF(O20=0,P15,IF(O20=1,P16,IF(O20=2,P13,IF(O20=3,P14,IF(O20=4,P17,\"\")))))","v":"Franchise tout au long de l'année en cours"},null,null,null,null,{"$f":"IF(C20<D20,0,IF(AND(C20>=D20,C20<=E20),1,IF(C20>E20,2,\"\")))","v":0},{"$f":"IF(C17<D18,0,IF(AND(C17>=D18,C17<=E18),1,IF(C17>E18,2,\"\")))","v":0},null,{"$f":"IF(AND(L20=0,M20=0),0,IF(AND(L20=1,O17=0),1,IF(AND(L20=0,O17=1),0,IF(AND(L20=1,O17=1),1,IF(AND(L20=2,O17=0),2,IF(AND(L20=2,O17=1),2,IF(AND(O17=2,L20=0),3,IF(AND(L17=2,L20=1),3,IF(AND(O17=2,L20=2),3,\"\")))))))))","v":0}]
[null,null,null,null,null,{"$f":"IF(F20=\"\",\"\",\"oui\")","v":"oui"}]
[]
[null,{"$f":"B20+1","v":2020},{"$f":"C9","v":0},{"$f":"IF(AND(B23>=2017,O9=1),AB4,IF(AND(B23>=2017,O8=1),AB2,IF(AND(B23>=2017,O10=1),AB4,\"\")))","v":33200},{"$f":"IF(AND(B23>=2017,O9=1),AC4,IF(AND(B23>=2017,O8=1),AC2,IF(AND(B23>=2017,O10=1),AC4,\"\")))","v":35200},{"$f":"IF(O23=0,\"Franchise\",IF(O23=1,\"Surveillance\",IF(O23=2,\"Dépassement\",IF(O23=3,\"Régime réel de TVA\",IF(O23=4,\"Franchise à nouveau possible\",\"\")))))","v":"Franchise"},{"$f":"IF(O23=0,P15,IF(O23=1,P16,IF(O23=2,P13,IF(O23=3,P14,IF(O23=4,P17,\"\")))))","v":"Franchise tout au long de l'année en cours"},null,null,null,null,{"$f":"IF(C23<D23,0,IF(AND(C23>=D23,C23<=E23),1,IF(C23>E23,2,\"\")))","v":0},{"$f":"IF(C20<D20,0,IF(AND(C20>=D20,C20<=E20),1,IF(C20>E20,2,\"\")))","v":0},{"$f":"IF(C17<D18,0,IF(AND(C17>=D18,C17<=E18),1,IF(C17>E18,2,\"\")))","v":0},{"$f":"IF(AND(AND(O17=0,O20=0,L23=0)),0,IF(AND(AND(O17=1,O20=0,L23=0)),0,IF(AND(AND(O17=0,O20=1,L23=0)),0,IF(AND(AND(O17=0,O20=0,L23=1)),1,IF(AND(AND(O17=0,O20=1,L23=1)),1,IF(AND(AND(O17=1,O20=0,L23=1)),1,IF(AND(L20=2,L23=0),3,IF(AND(L20=1,L23=2),2,IF(AND(AND(O17<=1,O20=0,L23=2)),2,IF(AND(O17=1,O20=1),3,IF(AND(AND(O17=1,O20=2,L23=0)),3,IF(AND(AND(O17=0,O20=2,L23=0)),3,IF(AND(AND(O17=0,O20=2,L23=1)),3,IF(AND(AND(O17=2,O20=2,L23=0)),3,IF(AND(AND(O17=0,O20=2,L23=2)),3,IF(AND(AND(O17=2,O20=3,L23=1)),3,IF(AND(AND(O17=2,O20=3,L23=2)),3,IF(AND(AND(O20=3,L23<=1,M23<=1)),3,IF(AND(AND(L17=2,L20=0,L23=0)),4,\"\")))))))))))))))))))","v":0}]
[null,null,null,null,null,{"$f":"IF(F23=\"\",\"\",\"oui\")","v":"oui"}]
[]
[null,{"$f":"B23+1","v":2021},{"$f":"C10","v":0},{"$f":"IF(AND(B26>=2017,O9=1),AB4,IF(AND(B26>=2017,O8=1),AB2,IF(AND(B26>=2017,O10=1),AB4,\"\")))","v":33200},{"$f":"IF(AND(B26>=2017,O9=1),AC4,IF(AND(B26>=2017,O8=1),AC2,IF(AND(B26>=2017,O10=1),AC4,\"\")))","v":35200},{"$f":"IF(O26=0,\"Franchise\",IF(O26=1,\"Surveillance\",IF(O26=2,\"Dépassement\",IF(O26=3,\"Régime réel de TVA\",IF(O26=4,\"Franchise à nouveau possible\",\"\")))))","v":"Franchise"},{"$f":"IF(O26=0,P15,IF(O26=1,P16,IF(O26=2,P13,IF(O26=3,P14,IF(O26=4,P17,\"\")))))","v":"Franchise tout au long de l'année en cours"},null,null,null,null,{"$f":"IF(C26<D26,0,IF(AND(C26>=D26,C26<=E26),1,IF(C26>E26,2,\"\")))","v":0},{"$f":"IF(C23<D23,0,IF(AND(C23>=D23,C23<=E23),1,IF(C23>E23,2,\"\")))","v":0},{"$f":"IF(C20<D20,0,IF(AND(C20>=D20,C20<=E20),1,IF(C20>E20,2,\"\")))","v":0},{"$f":"IF(AND(AND(O20=0,O23=0,L26=0)),0,IF(AND(AND(O20=0,O23=1,L26=0)),0,IF(AND(AND(O20=1,O23=0,L26=0)),0,IF(AND(AND(O20=0,O23=0,L26=1)),1,IF(AND(AND(O20=0,O23=1,L26=1)),1,IF(AND(L23=0,L26=2),2,IF(AND(AND(O20=0,O23=0,L26=2)),2,IF(AND(AND(O20=0,O23=1,L26=2)),2,IF(AND(AND(O20=3,O23=3,L26=2)),3,IF(AND(L23=2,L26=0),3,IF(AND(L20=1,L23=1),3,IF(AND(L23=2,L26=1),3,IF(AND(AND(O20=1,O23=1,L26=0)),3,IF(AND(AND(O20=0,O23=2,L26=2)),3,IF(AND(AND(O20=1,O23=3,L26=0)),3,IF(AND(AND(O20=2,O23=3,L26=0)),3,IF(AND(L23=2,L26=2),3,IF(AND(O23=4,L26=0),4,IF(AND(AND(O20=3,L23=1,L26=0)),4,IF(AND(AND(O20=3,L23=1,L26=1)),4,IF(AND(AND(O20=3,L23=0,L26=1)),4,IF(AND(AND(L20=2,L23=0,L26=0)),4,IF(AND(AND(O23=3,L26<=1,M26<=1)),4,\"\")))))))))))))))))))))))","v":0}]
[null,null,null,null,null,{"$f":"IF(F26=\"\",\"\",\"oui\")","v":"oui"}]
[]
[null,{"$f":"B26+1","v":2022},{"$f":"C11","v":0},{"$f":"IF(AND(B29>=2017,O9=1),AB4,IF(AND(B29>=2017,O8=1),AB2,IF(AND(B29>=2017,O10=1),AB4,\"\")))","v":33200},{"$f":"IF(AND(B29>=2017,O9=1),AC4,IF(AND(B29>=2017,O8=1),AC2,IF(AND(B29>=2017,O10=1),AC4,\"\")))","v":35200},{"$f":"IF(O29=0,\"Franchise\",IF(O29=1,\"Surveillance\",IF(O29=2,\"Dépassement\",IF(O29=3,\"Régime réel de TVA\",IF(O29=4,\"Franchise à nouveau possible\",\"\")))))","v":"Franchise"},{"$f":"IF(O29=0,P15,IF(O29=1,P16,IF(O29=2,P13,IF(O29=3,P14,IF(O29=4,P17,\"\")))))","v":"Franchise tout au long de l'année en cours"},null,null,null,null,{"$f":"IF(C29<D29,0,IF(AND(C29>=D29,C29<=E29),1,IF(C29>E29,2,\"\")))","v":0},{"$f":"IF(C26<D26,0,IF(AND(C26>=D26,C26<=E26),1,IF(C26>E26,2,\"\")))","v":0},{"$f":"IF(C23<D23,0,IF(AND(C23>=D23,C23<=E23),1,IF(C23>E23,2,\"\")))","v":0},{"$f":"IF(AND(AND(O23=0,L26<=1,L29=0)),0,IF(AND(AND(O23<=1,O26=0,L29=0)),0,IF(AND(AND(O23<=1,L26=0,L29=1)),1,IF(AND(AND(O23=0,O26=1,L29=1)),1,IF(AND(AND(L23=0,L26=0,L29=2)),2,IF(AND(AND(L23=0,L26=1,L29=2)),2,IF(AND(AND(O23=4,L26=2,L29=0)),3,IF(AND(L23=1,L26=1),3,IF(AND(AND(L23=1,L26=2,L29=0)),3,IF(AND(AND(L23=1,L26=2,L29=1)),3,IF(AND(AND(O23=0,L26=2,L29=0)),3,IF(AND(AND(L23=0,L26=2,L29=1)),3,IF(AND(AND(L23=0,L26=2,L29=2)),3,IF(AND(AND(L23=2,L26=0,L29=1)),3,IF(AND(AND(O23=3,L26=2,L29=2)),3,IF(AND(AND(O26=3,L29>=1,M29>=1)),3,IF(AND(AND(O26=2,L29<=1,M29=2)),3,IF(AND(O26=4,L29=0),4,IF(AND(AND(O26=4,L29=1,M29<=1)),4,IF(AND(AND(O26=3,L29=0,M29=0)),3,\"\"))))))))))))))))))))","v":0}]
[null,null,null,null,null,{"$f":"IF(F29=\"\",\"\",\"oui\")","v":"oui"}]
[]
[]
[null,"© UPSME Août 2018"]